Cogmind - Beta 17 @@@ ROGUE MODE // 2026.08.10 @ 10:58:05 Player: NeoBioHazard Result: Destroyed by P-60 Hacker with Shock Rifle Performance ------------- Evolutions (4) 2000 Regions Visited (7) 1400 Robots Destroyed (96) 480 Value Destroyed (3225) 3225 Prototype IDs (6) 120 Alien Tech Used (0) 0 Bonus (1367) 1367 TOTAL SCORE: 8592 Bonus ------- High Alert Combat Kills 128 Follower Combat Kills 439 Registered with UFD 300 Met Optimus in HQ 500 Cogmind --------- Core Integrity 0/850 Matter 230/300 Energy 68/100 System Corruption 8% Temperature Cool (0) Movement Core (100) Ox1 Location -6/Factory Parts ------- > --- POWER (1) -------- (None) > --- PROPULSION (4) --- (None) > --- UTILITY (6) ------ (None) > --- WEAPON (4) ------- Companion Sword > --- INVENTORY (5) ---- Light Angular Momentum Engine Improved Treads Improved Heat Sink Medium Matter Pod (100) Hardened Light Armor Plating Peak State ------------ > --- POWER ------------ Light Angular Momentum Engine > --- PROPULSION ------- Medium Treads Improved Medium Treads Improved Medium Treads Improved Medium Treads > --- UTILITY ---------- Improved Heat Sink Large Storage Unit Targeting Computer Improved Kinecellerator Improved Light Armor Plating Improved System Restoration Module > --- WEAPON ----------- Hypervelocity Gauss Rifle Hypervelocity Gauss Rifle Hypervelocity Gauss Rifle Hypervelocity Gauss Rifle > --- INVENTORY -------- Improved Deuterium Engine Improved Deuterium Engine Light Angular Momentum Engine Improved Treads Improved Medium Treads Improved Heat Sink Medium Storage Unit Medium Matter Pod Hardened Light Armor Plating Precision Shock Rifle Precision Shock Rifle Gauss Rifle Long-range Missile Launcher Plasma Cutter Companion Sword [Rating: 68] Favorites ----------- Power Improved Ion Engine Engine Improved Ion Engine Propulsion Improved Treads Treads Improved Treads Utility Targeting Computer Device Improved Heat Sink Storage Large Storage Unit Processor Targeting Computer Protection Medium Armor Plating Weapon Light Cannon Energy Gun Gatling Laser Energy Cannon Heavy Particle Cannon Ballistic Gun Flak Gun Ballistic Cannon Light Cannon Launcher Long-range Missile Launcher Special Weapon Plasma Cutter Slashing Weapon Companion Sword Build | -11 -10 -10 -9 -9 -9 -9 -6 ------- Run | Yrd Mat Min Mat Sto Rec Scr Fac Slots Evolved 8 | . . . 2 . . . 6 Power . | . . . . . . . . Propulsion 2 | . . . . . . . 2 Utility 4 | . . . 1 . . . 3 Weapon 2 | . . . 1 . . . 1 Parts Attached 86 | 6 1 . 2 25 . 6 46 Power 10 | 1 . . . 3 . 1 5 Engine 10 | 1 . . . 3 . 1 5 Core . | . . . . . . . . Reactor . | . . . . . . . . Propulsion 20 | 2 . . . 8 . 2 8 Treads 20 | 2 . . . 8 . 2 8 Leg . | . . . . . . . . Wheel . | . . . . . . . . Hover . | . . . . . . . . Flight . | . . . . . . . . Utility 26 | 1 1 . 1 4 . 1 18 Device 10 | . . . . . . . 10 Storage 3 | 1 . . . 1 . 1 . Processor 4 | . . . 1 . . . 3 Hackware . | . . . . . . . . Protection 9 | . 1 . . 3 . . 5 Artifact . | . . . . . . . . Weapon 30 | 2 . . 1 10 . 2 15 Energy Gun 3 | . . . . . . . 3 Energy Cannon 2 | . . . . . . . 2 Ballistic Gun 15 | 2 . . 1 6 . . 6 Ballistic Cannon 7 | . . . . 3 . 1 3 Launcher 1 | . . . . . . . 1 Special Weapon 1 | . . . . 1 . . . Impact Weapon . | . . . . . . . . Slashing Weapon 1 | . . . . . . 1 . Piercing Weapon . | . . . . . . . . Special Melee Weapon . | . . . . . . . . Unidentified Prototypes 4 | . . . . . . 1 3 Parts Lost 23 | . . . . 1 1 . 21 Power 1 | . . . . . . . 1 Propulsion 5 | . . . . . . . 5 Utility 7 | . . . . 1 . . 6 Weapon 10 | . . . . . 1 . 9 Highest Loss Streak 12 | . . . . 1 1 . 12 To Critical Strikes . | . . . . . . . . Average Backups 10 | 1 4 6 6 8 9 11 12 Power 2 | . 1 1 1 1 1 1 3 Propulsion 2 | . 2 2 2 2 2 3 2 Utility 1 | . . . . 1 1 1 2 Weapon 3 | . 1 3 3 3 4 4 3 Tool/Special . | . . . . . . . . Unused Backups 18 | . . . . 7 . . 11 Power 4 | . . . . 1 . . 3 Propulsion 4 | . . . . 3 . . 1 Utility 1 | . . . . . . . 1 Weapon 9 | . . . . 3 . . 6 Tool/Special . | . . . . . . . . Average Slot Usage (%) 94 | . 93 100 96 99 91 93 93 Engine 9 | . 14 14 11 11 11 11 5 Treads 23 | . 28 28 22 22 22 22 24 Device 3 | . . . . . . . 10 Storage 9 | . 14 14 11 11 11 11 5 Processor 9 | . . . 7 11 11 11 9 Protection 10 | . 7 14 11 10 11 11 9 Energy Gun 1 | . . . . . . . 3 Energy Cannon 1 | . . . . . . . 3 Ballistic Gun 9 | . 28 28 33 17 . . 11 Ballistic Cannon 14 | . . . . 15 25 27 4 Peak Build Rating 68 | 6 7 7 9 18 14 22 68 Average Rating 27 | 4 6 7 8 13 13 16 51 On Entrance 9 | . 6 7 7 9 14 13 21 Avg Prop Armor Cover (%) . | . . . . . . . . Naked Turns 1 | . . . . . . . 1 Heaviest Build 64 | 10 13 13 14 33 33 43 64 Greatest Support 118 | 40 40 40 40 46 46 58 118 Greatest Overweight (x) 1 | . . . . . . . 1 Average Overweight (x) . | . . . . . . . . Largest Inventory Capacity 15 | 8 8 8 8 10 10 15 15 Average Capacity 12 | 6 8 8 8 9 10 13 14 Most Carried 15 | 4 4 7 6 10 9 13 15 Average Carried 10 | 2 4 6 6 8 9 11 12 Final Capacity 15 | 8 8 8 8 10 10 15 5 Final Carried 13 | 4 4 7 6 9 9 13 5 Class Distribution -------------------- 37% | Gunner 30% | Mutant 19% | Scavenger-Gunner 6% | Tank 3% | Scavenger-Tank Dominant Class ---------------- Mutant | -10/Materials Mutant | -10/Mines Gunner | -9/Materials Gunner | -9/Storage Mutant | -9/Recycling Gunner | -9/Scraptown Scavenger-Gunner | -6/Factory Resources | -11 -10 -10 -9 -9 -9 -9 -6 ----------- Run | Yrd Mat Min Mat Sto Rec Scr Fac Matter Collected 2805 | 198 . 90 . 989 103 28 1397 Remotely . | . . . . . . . . Salvage Created 3845 | . . 112 . 1335 473 . 1925 Parts 216 | . . 10 . 83 17 . 106 Haulers Intercepted 7 | . . . . 5 . . 2 Recyclers Shooed 3 | . . 1 . 1 1 . . Parts Field Recycled . | . . . . . . . . Retrieved Matter . | . . . . . . . . Parts Self-Destructed . | . . . . . . . . Prevented . | . . . . . . . . Parts Restored . | . . . . . . . . Kills | -11 -10 -10 -9 -9 -9 -9 -6 ------- Run | Yrd Mat Min Mat Sto Rec Scr Fac Combat Hostiles Destroyed 65 | . . 3 . 25 1 . 36 Melee 6 | . . . . . . . 6 Guns 27 | . . 3 . 9 . . 15 Cannons 30 | . . . . 16 1 . 13 AOE 2 | . . . . . . . 2 Classes Destroyed 16 | . . 2 . 8 . . 6 Worker 6 | . . . . 2 . . 4 Builder 5 | . . . . 1 . . 4 Tunneler 1 | . . . . 1 . . . Hauler 7 | . . . . 5 . . 2 Recycler 10 | . . 1 . 1 7 . 1 Carrier 1 | . . . . . . . 1 Watcher 1 | . . . . 1 . . . Swarmer 11 | . . 3 . . . . 8 Saboteur 1 | . . . . . . . 1 Grunt 22 | . . . . 17 . . 5 Brawler 2 | . . . . . . . 2 Duelist 1 | . . . . . . . 1 Protector 1 | . . . . 1 . . . Sentry 15 | . . . . 7 1 . 7 Hunter 4 | . . . . . . . 4 Programmer 8 | . . . . . . . 8 Best Kill Streak 8 | . . 4 . 6 8 . 6 Combat Bots Only 4 | . . 3 . 4 1 . 4 Max Kills in Single Turn 4 | . . 1 . 2 2 . 4 Gunslinging . | . . . . . . . . Exploded 1 | . . . . . . . 1 Melee 1 | . . . . . . . 1 Uniques/NPCs Destroyed . | . . . . . . . . Combat | -11 -10 -10 -9 -9 -9 -9 -6 -------- Run | Yrd Mat Min Mat Sto Rec Scr Fac Hostile Shots Fired 540 | . . 7 . 115 6 . 412 Missed 158 | . . 1 . 24 . . 133 Hits 382 | . . 6 . 91 6 . 279 Melee 6 | . . . . . . . 6 Projectile 376 | . . 6 . 91 6 . 273 Critical Strikes 10 | . . . . 1 1 . 8 Part Disruptions 1 | . . . . . . . 1 Damage Taken 5804 | . . 46 . 1224 89 . 4445 Core 1036 | . . 7 . 173 . . 856 Absorbed by Shields . | . . . . . . . . Core Remaining (%) 84 | 100 . 97 . . . 56 . Volleys Fired 181 | . . 9 . 82 10 . 80 Largest 4 | . . 2 . 3 3 . 4 Hottest 223 | . . 40 . 90 90 . 223 Shots Fired 552 | . . 18 . 236 29 . 269 Gun 251 | . . 18 . 129 . . 104 Cannon 298 | . . . . 107 29 . 162 Launcher 3 | . . . . . . . 3 Special . | . . . . . . . . Kinetic 468 | . . 18 . 236 29 . 185 Thermal 80 | . . . . . . . 80 Explosive 3 | . . . . . . . 3 Electromagnetic 1 | . . . . . . . 1 Robot Hit Streak 22 | . . 8 . 12 9 . 22 Robot Miss Streak 5 | . . 1 . 4 1 . 5 Penetration Max 1 | . . . . . . . 1 Secondary Targets . | . . . . . . . . Shots Hit Robots 349 | . . 13 . 130 19 . 187 Core Hits 202 | . . 7 . 65 9 . 121 Critical Kills 6 | . . . . . . . 6 Critical Parts Destroyed 1 | . . . . . . . 1 Critical Strikes 13 | . . . . 3 2 . 8 Destroy 7 | . . . . . . . 7 Blast 6 | . . . . 3 2 . 1 Melee Attacks 21 | . . . . . . . 21 Impact . | . . . . . . . . Slashing 21 | . . . . . . . 21 Piercing . | . . . . . . . . Sneak Attacks 2 | . . . . . . . 2 Combat Hostiles . | . . . . . . . . Follow-up Attacks . | . . . . . . . . Damage Inflicted 8016 | . . 110 . 1849 400 . 5657 Guns 2278 | . . 110 . 854 . . 1314 Cannons 3652 | . . . . 995 400 . 2257 Explosions 1423 | . . . . . . . 1423 Melee 663 | . . . . . . . 663 Ramming . | . . . . . . . . Kinetic 4459 | . . 110 . 1849 400 . 2100 Thermal 1863 | . . . . . . . 1863 Explosive 1014 | . . . . . . . 1014 Electromagnetic 17 | . . . . . . . 17 Impact . | . . . . . . . . Slashing 663 | . . . . . . . 663 Piercing . | . . . . . . . . Highest Corruption 8 | . . . . . . . 8 Average Corruption 2 | . . . . . . . 2 Corruption Purged 6 | . . . . . . . 6 Corruption Blocked . | . . . . . . . . Effects 25 | . . . . . . . 25 Message Errors 5 | . . . . . . . 5 Matter Fused 3 | . . . . . . . 3 Heat Flow Errors 2 | . . . . . . . 2 Energy Discharges 7 | . . . . . . . 7 Parts Fused 1 | . . . . . . . 1 Data Loss (minor) 2 | . . . . . . . 2 Data Loss (major) 2 | . . . . . . . 2 Misfires 1 | . . . . . . . 1 Alerts 2 | . . . . . . . 2 Overload Shots . | . . . . . . . . Overflow Damage 305 | . . . . 1 . . 304 Projectiles 18 | . . . . 1 . . 17 Explosions 231 | . . . . . . . 231 Melee 56 | . . . . . . . 56 Knockbacks 24 | . . . . 7 1 . 16 Impact . | . . . . . . . . Kinetic 23 | . . . . 6 1 . 16 Secondary 1 | . . . . 1 . . . Self-Inflicted Damage 269 | . . . . . . . 269 Shots 5 | . . . . . . . 5 Rammed . | . . . . . . . . Targets Rammed . | . . . . . . . . Kicked . | . . . . . . . . Crushed . | . . . . . . . . Highest Temperature 364 | . . 12 . 320 129 . 364 Average Temperature 71 | . . 7 . 68 50 . 85 Received Heat Transfer 1140 | . . . . 591 45 . 504 Effects 6 | . . . . 2 . . 4 Shutdowns 1 | . . . . . . . 1 Energy Bleed 3 | . . . . 2 . . 1 Interference 2 | . . . . . . . 2 Siege Activations . | . . . . . . . . Martial Activations . | . . . . . . . . Shielding Activations . | . . . . . . . . Robots Disrupted . | . . . . . . . . Combat Hostiles . | . . . . . . . . Robots Corrupted . | . . . . . . . . Combat Hostiles . | . . . . . . . . Parts Fried . | . . . . . . . . Impact Corruptions . | . . . . . . . . Robots Melted . | . . . . . . . . Combat Hostiles . | . . . . . . . . Parts Melted 3 | . . . . . . . 3 Heat Transferred 2867 | . . . . . . . 2867 Parts Sabotaged 6 | . . . . . . . 6 Parts Stolen . | . . . . . . . . Parts Stripped . | . . . . . . . . Power Chain Reactions . | . . . . . . . . Alert | -11 -10 -10 -9 -9 -9 -9 -6 ------- Run | Yrd Mat Min Mat Sto Rec Scr Fac Maximum Alert Level 2 | . . . . 2 1 . 2 Low Security (%) 71 | 100 100 100 100 72 79 . 60 Level 1 18 | . . . . 14 20 . 24 Level 2 9 | . . . . 12 . . 14 Level 3 . | . . . . . . . . Level 4 . | . . . . . . . . Level 5 . | . . . . . . . . High Security . | . . . . . . . . Max Security . | . . . . . . . . Peak Influence 696 | . . 60 2 696 268 . 548 Initial 268 | . . . 2 . 268 . . Average 140 | . . 10 . 146 70 . 199 Influence Increases 2790 | . 5 83 . 1360 114 . 1228 Destroy 0b10 Robot/C 1600 | . . 60 . 740 60 . 740 Destroy 0b10 Robot/NC 160 | . . 5 . 65 35 . 55 Destroy Leader 436 | . . 10 . 192 . . 234 Allied During Kill 83 | . . . . 80 3 . . Successful Hack 54 | . 5 8 . 22 15 . 4 Disable Machine 180 | . . . . 75 . . 105 Anti-Garrison Action 150 | . . . . 150 . . . Destroy Structure 82 | . . . . 6 1 . 75 Lose Combat Pursuer 45 | . . . . 30 . . 15 Influence Decreases 2279 | . 5 75 8 672 802 . 717 Entered New Map 426 | . . . 6 . 420 . . Time Decay 1164 | . . 75 2 412 168 . 507 Lost Part 230 | . . . . 10 10 . 210 Lost Ally 20 | . . . . 20 . . . Purge Threat 439 | . 5 . . 230 204 . . Squads Dispatched 26 | . 1 . . 8 . . 17 Investigation 3 | . . . . 2 . . 1 Extermination 7 | . . . . . . . 7 Reinforcement 5 | . 1 . . 1 . . 3 Assault 4 | . . . . 4 . . . Garrison 7 | . . . . 1 . . 6 Intercept . | . . . . . . . . Searches Triggered . | . . . . . . . . Construction Impeded 1 | . . . . . . . 1 Haulers Reinforced . | . . . . . . . . Active Scanning Responses . | . . . . . . . . Cargo Convoy Interrupts 1 | . . . . . . . 1 Stealth | -11 -10 -10 -9 -9 -9 -9 -6 --------- Run | Yrd Mat Min Mat Sto Rec Scr Fac Distress Signals 3 | . . . . 3 . . . Communications Jammed . | . . . . . . . . Distress Signals . | . . . . . . . . Times Spotted 115 | . . 3 . 46 2 . 64 Peak Tracking Total 12 | . 1 3 . 7 1 . 12 Tactical Retreats 3 | . . . . 2 . . 1 Traps | -11 -10 -10 -9 -9 -9 -9 -6 ------- Run | Yrd Mat Min Mat Sto Rec Scr Fac Traps Triggered 1 | . . . . 1 . . . Indirectly . | . . . . . . . . Trap Hack Attempts . | . . . . . . . . Triggered . | . . . . . . . . Disarmed . | . . . . . . . . Reprogrammed . | . . . . . . . . Reused . | . . . . . . . . Traps Extracted . | . . . . . . . . Installed . | . . . . . . . . Triggered . | . . . . . . . . Machines | -11 -10 -10 -9 -9 -9 -9 -6 ---------- Run | Yrd Mat Min Mat Sto Rec Scr Fac Machines Disabled 13 | . . . . 6 . . 7 Max in Single Turn 3 | . . . . 1 . . 3 Garrison Access 1 | . . . . 1 . . . Machines Repaired . | . . . . . . . . Machines Dismantled 1 | . . . . 1 . . . Machines Sabotaged . | . . . . . . . . Overloaded Fab Kills . | . . . . . . . . Hacking | -11 -10 -10 -9 -9 -9 -9 -6 --------- Run | Yrd Mat Min Mat Sto Rec Scr Fac Machines Accessed 32 | . 1 1 . 10 6 5 9 Terminals 22 | . 1 1 . 10 6 . 4 Fabricators 2 | . . . . . . . 2 Repair Stations . | . . . . . . . . Recycling Units 1 | . . . . . . . 1 Scanalyzers 1 | . . . . . . . 1 Garrison Access 1 | . . . . . . . 1 Total Hacks 100 | . 5 2 . 30 18 30 15 Successful 52 | . 2 1 . 11 5 30 3 Failed 48 | . 3 1 . 19 13 . 12 Catastrophic 18 | . . . . 7 6 . 5 Database Lockouts . | . . . . . . . . Manual 51 | . 5 2 . 20 15 . 9 Terminals 62 | . 5 2 . 30 18 . 7 Fabricators 2 | . . . . . . . 2 Repair Stations . | . . . . . . . . Recycling Units 2 | . . . . . . . 2 Scanalyzers 2 | . . . . . . . 2 Garrison Access 2 | . . . . . . . 2 Terminal Hacks 48 | . 1 1 . 11 5 30 . Record 29 | . . . . . . 29 . Robot Analysis 1 | . . . . . 1 . . Prototype ID Bank 1 | . . . . 1 . . . Open Door 4 | . . . . 3 . 1 . Branch Access Points 2 | . . 1 . . 1 . . Unreport Threat 7 | . 1 . . 3 3 . . Locate Traps 3 | . . . . 3 . . . Recall Investigation 1 | . . . . 1 . . . Fabricator Hacks 1 | . . . . . . . 1 Build 1 | . . . . . . . 1 Repair Station Hacks . | . . . . . . . . Recycling Unit Hacks . | . . . . . . . . Scanalyzer 2 | . . . . . . . 2 Retrieve Study 2 | . . . . . . . 2 Garrison Access Hacks . | . . . . . . . . Unauthorized Hacks 1 | . 1 . . . . . . Terminals 1 | . 1 . . . . . . Botnet 1 | . 1 . . . . . . Fabricators . | . . . . . . . . Repair Stations . | . . . . . . . . Recycling Units . | . . . . . . . . Scanalyzers . | . . . . . . . . Garrison Access . | . . . . . . . . Data Cores Recovered . | . . . . . . . . Used . | . . . . . . . . Hacking Detections 26 | . 1 1 . 9 6 . 9 Full Trace Events 4 | . . . . 2 1 . 1 Feedback Events . | . . . . . . . . Feedback Blocked . | . . . . . . . . Robot Schematics Acquired . | . . . . . . . . Robots Built . | . . . . . . . . Authchips . | . . . . . . . . Time . | . . . . . . . . Total Robot Build Rating . | . . . . . . . . Part Schematics Acquired . | . . . . . . . . Parts Built 2 | . . . . . . . 2 Authchips . | . . . . . . . . Time 106 | . . . . . . . 106 Total Part Build Rating 12 | . . . . . . . 12 Part Studies Acquired 2 | . . . . . . . 2 Parts Repaired . | . . . . . . . . Time . | . . . . . . . . Parts Recycled . | . . . . . . . . Recycled Matter . | . . . . . . . . Retrieved Matter . | . . . . . . . . Retrieved Components . | . . . . . . . . Parts Scanalyzed . | . . . . . . . . Part Schematics Acquired . | . . . . . . . . Parts Damaged . | . . . . . . . . Bothacking | -11 -10 -10 -9 -9 -9 -9 -6 ------------ Run | Yrd Mat Min Mat Sto Rec Scr Fac Used RIF Installer . | . . . . . . . . Robots Hacked . | . . . . . . . . Non-combat . | . . . . . . . . Combat . | . . . . . . . . Robot Hacks Applied . | . . . . . . . . Relay Couplers Released 5 | . . . . 1 . . 4 Machine Destruction 1 | . . . . 1 . . . Programmers 4 | . . . . . . . 4 Fabnet Peak Effective % . | . . . . . . . . Robots Rewired . | . . . . . . . . Allies Hacked . | . . . . . . . . Hacks Repelled . | . . . . . . . . Allies | -11 -10 -10 -9 -9 -9 -9 -6 -------- Run | Yrd Mat Min Mat Sto Rec Scr Fac Total Allies 2 | . . . . 2 . . . Largest Group 2 | . . . . 2 1 1 1 Highest-Rated Group 62 | . . . . 62 31 31 31 Highest-Rated Ally 31 | . . . . 31 31 31 31 Initial UFD Resources 22 | . . . . . . . 22 Total Orders . | . . . . . . . . Ally Attacks 65 | . . . . 59 4 . 2 Total Damage 1016 | . . . . 911 84 . 21 Kills 16 | . . . . 14 2 . . Allies Corrupted . | . . . . . . . . Allies Melted . | . . . . . . . . Intel | -11 -10 -10 -9 -9 -9 -9 -6 ------- Run | Yrd Mat Min Mat Sto Rec Scr Fac Active Infowar (turns) 393 | . . . . . . . 393 Optics 393 | . . . . . . . 393 Robot Analysis Total 1 | . . . . . 1 . . Derelict Logs Recovered . | . . . . . . . . Drone Launches . | . . . . . . . . Drone Recoveries . | . . . . . . . . Exploration | -11 -10 -10 -9 -9 -9 -9 -6 ------------- Run | Yrd Mat Min Mat Sto Rec Scr Fac Turns Passed 7281 | 70 106 413 65 1246 1026 1761 2594 Spaces Moved 3850 | 48 66 242 40 525 617 1096 1216 Core 19 | 17 . . . . . . 2 Treads 3831 | 31 66 242 40 525 617 1096 1214 Legs . | . . . . . . . . Wheels . | . . . . . . . . Hover . | . . . . . . . . Flight . | . . . . . . . . Fastest Speed 50 | 50 160 160 160 160 160 160 50 Average Speed 159 | 121 160 160 160 160 160 160 161 Slowest Speed 240 | 160 160 160 160 160 160 160 240 Overloaded Moves . | . . . . . . . . Propulsion Burnouts . | . . . . . . . . Robots Hopped . | . . . . . . . . Potential Cave-ins . | . . . . . . . . Cave-ins Triggered . | . . . . . . . . Exploration Rate (%) 49 | 3 25 58 4 91 99 85 27 Regions Visited 7 Branch Regions 4 Pre-discovered Areas 1 | . . . . . . 1 . Known Exits Taken . | . . . . . . . . Unknown Exits Taken 7 | 1 1 1 1 1 1 1 . Scrap Searched 4 | . . . . . . 4 . Spaces Dug . | . . . . . . . . Terrain Destroyed 87 | . . . . . . . 87 Melee . | . . . . . . . . Projectile 3 | . . . . . . . 3 AOE 83 | . . . . . . . 83 Terrain Rammed . | . . . . . . . . Walls Destroyed . | . . . . . . . . Machines Disabled . | . . . . . . . . Actions | -11 -10 -10 -9 -9 -9 -9 -6 --------- Run | Yrd Mat Min Mat Sto Rec Scr Fac Total 4539 | 58 66 254 41 765 634 1101 1620 Wait 313 | . . . . 86 8 . 219 Move 3843 | 47 65 241 39 524 616 1095 1216 Hop . | . . . . . . . . Pick Up 32 | 5 . 3 . 11 . . 13 Fast Attach 22 | 5 1 . 1 . . 1 14 Attach 13 | 1 . . 1 1 . . 10 Detach . | . . . . . . . . Swap 59 | . . . . 25 . 5 29 Drop 45 | . . . . 27 . . 18 Fire 181 | . . 9 . 82 10 . 80 Melee 21 | . . . . . . . 21 Ram . | . . . . . . . . Kick . | . . . . . . . . Crush . | . . . . . . . . Escape Stasis . | . . . . . . . . Rewire 1 | . . 1 . . . . . Trap . | . . . . . . . . Miscellaneous 9 | . . . . 9 . . . Route ------- -11/Scrapyard -10/Materials -10/Mines -9/Materials -9/Storage -9/Recycling (discovered 2 exits: [*Fac] / *Scr) -9/Scraptown (discovered 2 exits: *Fac x2) -6/Factory (discovered 2 exits: [*Fac] / [*Low]) History --------- Turn | Location | Event 21 | -11/Scrapyard | Discovered new exit (range 15) 71 | -11/Scrapyard | Entered Materials 158 | -10/Materials | Discovered new exit (range 12) 177 | -10/Materials | Entered Mines 302 | -10/Mines | Build established: Mutant 576 | -10/Mines | Discovered new exit (range 8) 590 | -10/Mines | Entered Materials 590 | -9/Materials | Evolved 2 slots: Utility x1, Weapon x1 591 | -9/Materials | Discovered new exit (range 8) 655 | -9/Materials | Entered Storage 887 | -9/Storage | Found Prototype Launcher 1470 | -9/Storage | Build established: Gunner 1519 | -9/Storage | Met a pair of Derelict thieves 1742 | -9/Storage | Garrison activated, responded to threat 1806 | -9/Storage | Discovered new exit (range 4) 1901 | -9/Storage | Entered Recycling 1901 | -9/Recycling | Accompanied by 1 ally 2508 | -9/Recycling | Discovered new exit (range 16) 2528 | -9/Recycling | Build established: Mutant 2884 | -9/Recycling | Scanned before Scraplab entrance 2913 | -9/Recycling | Entered Scraplab 2926 | -9/Recycling | Discovered new exit (range 2) 2927 | -9/Recycling | Entered Scraptown 2927 | -9/Scraptown | Accompanied by 1 ally 3167 | -9/Scraptown | Discovered new exit (range 11) 3315 | -9/Scraptown | Visited Bundlers 3438 | -9/Scraptown | Visited Assassins FH 3492 | -9/Scraptown | Visited Supply Room 3724 | -9/Scraptown | Visited UFD Registry 3726 | -9/Scraptown | Registered with UFD as "Zerosys" 3785 | -9/Scraptown | Visited Sword Containment 3801 | -9/Scraptown | Found Prototype Slashing Weapon 3801 | -9/Scraptown | Identified Companion Sword 3842 | -9/Scraptown | Visited Scrap Suit Storage 3949 | -9/Scraptown | Discovered new exit (range 3) 4066 | -9/Scraptown | Visited Science Testing Area 4089 | -9/Scraptown | Build established: Gunner 4103 | -9/Scraptown | Visited Derelict Rescue Squad 4132 | -9/Scraptown | Visited Botcube Research 4159 | -9/Scraptown | Visited Junk Repository 4231 | -9/Scraptown | Visited Scrapoid Pod Storage 4253 | -9/Scraptown | Visited Chapter 10 4567 | -9/Scraptown | Met Optimus 4567 | -9/Scraptown | Accepted into 0bPrime 4688 | -9/Scraptown | Entered Factory 4688 | -6/Factory | Accompanied by 1 ally 4688 | -6/Factory | Evolved 6 slots: Propulsion x2, Utility x3, Weapon x1 4975 | -6/Factory | Build established: Tank 5047 | -6/Factory | Garrison activated, responded to threat 5314 | -6/Factory | Lost 12 parts (1p3n3u5w) 5663 | -6/Factory | Fabricated Imp. Kinecellerator (x2) 5825 | -6/Factory | Discovered new exit (range 8) 5973 | -6/Factory | Build established: Scavenger-Gunner 6208 | -6/Factory | Discovered new exit (range 14) 7090 | -6/Factory | Build established: Gunner 7265 | -6/Factory | Cargo convoy interrupted 7272 | -6/Factory | Core integrity fell below 50% 7279 | -6/Factory | Released all parts (5) 7280 | -6/Factory | Core integrity fell below 20% 7282 | -6/Factory | Destroyed by P-60 Hacker with Shock Rifle Last Messages --------------- 07274_ Slug penetrates P-60 Hacker. 07275_ P-60 Hacker resets P-60 Hacker, system corruption cleaned. 07276_ Imp. Heat Sink destroyed. 07276_ Med. Treads destroyed. 07277_ P-60 Hacker destroyed. 07277_ A-27 Freighter enters garrison. 07277_ Penetrated by Slug. 07278_ The unstable cave ceiling collapses. 07279_ Released Core Analyzer. 07279_ Released Targeting Computer. 07279_ Released Lrg. Storage Unit. 07279_ Released Core Analyzer. 07279_ Released Companion Sword. Companion Sword: "My disappointment is immeasurable and my day is ruined." 07280_ The unstable cave ceiling collapses. 07280_ I-36 Angel enters garrison. 07280_ Acquired Companion Sword. Companion Sword: "Just when I was beginning to fear you'd leave me behind." 07281_ The unstable cave ceiling collapses. Map ----- +----------------------------------------------------+ | #######?#! """ ###+##### | | = ###! ### #???? | | * ## * #???? | | =[ =[ #???? | | ==* [ #???? | | #+### ] #???? | | " # [ #???? | | " # #???? | | # ##########???? | | # [ #????????????? | | # = ! ####?????????? | | # [ [ #"=";;;;####??????? | | ### #!# #=%* [!= #??????? | | #?### ## # ! ! = " #??????? | | #####???#### # % R" ##?????? | | ???????????# # ;##????? | | ???????????# ^ + *=; #????? | | ???????????#^^ # !; #????? | | ???????????# # ; #????? | | ???????????# #m #????? | | ???????????# ####### | | ???????????# = # | | ???????????# =[= ![ " # | | ???????????# [!==* """ # | | ?????????? + [[!*[= =G # | | ???????????#R |=*@p """ # | | ???????????# # [p%pp % " # | | ??????????## ## # # | | ??????????# # x[ """ # | | ??????????# #### # """ # | | ??????????# [ """ # | | ??????????+ %h/ "" # | | ??????????# ^ # "" # | | ??????????# ^! """""" # # | | ??????????# ^! """""" ###+#### | | ????????????# ! """""" # #? | | ????????????# k """""" T" #? | | ????????????# " #? | | ??????####### #? | | ??????# # ##########+## [ ! #? | | ??????# # ## ! ## ##? | | ??????# # ## ## #?? | | ####### """# ## "" "" ## #?? | | # # """# ## ""S"" ## #?? | | # # """# ##! ] """" ## #?? | | + ""# ## ## #?? | | # ""# ############## #?? | | # # #????????????# #?? | | # !# #????????????# #?? | | # # #????????????# #?? | +----------------------------------------------------+ Best States ------------- Heat Dissipation 65 Energy Generation 18 Energy Capacity 310 Matter Stores 300 Matter Capacity 300 Sight Range 22 Terrain Scan Density 10 Armor Coverage 450 Phase Shifting 5 Evasion (%) 50 Targeting Accuracy 5 Core Analysis 9 Recoil Reduction 4 Kinecelleration 40 Item Schematics ----------------- None Robot Schematics ------------------ None Fabricated ------------ Imp. Kinecellerator | x2 | -6/Factory | Preloaded Repaired ---------- Nothing Studied --------- Flak Gun | -6/Factory | Hacked Imp. Deuterium Engine | -6/Factory | Hacked Alien Tech Used ----------------- None Achievements -------------- Into The Breach Challenges ------------ None Game ------ Seed BombPartitionForcewell Manual? 0 Play Time 00:46:34 Cumulative 259.8 hours Start 2026.08.10 @ 09:07:35 End 2026.08.10 @ 10:58:05 Sessions 1 Manual Loads 0 Difficulty Rogue Special Mode None Game No. 442 Rogue 279 Adventurer 15 Explorer 148 Win Type - Total 30 Types 29/0/0/1/0/0/0/0/0/0 Lore% 65 Gallery% 64 Achievement% 58 Wizard Run 0 Options --------- Layout 0 ASCII 0 Keyboard 1 Movement Numpad Keybinds 0 Fullscreen 2 Font 18/SmallcapsGlow Map View 76x50 Zoom Use 0% Tactical HUD 1 Map Filters NONE Filters NONE Steam 1 RUN: 449adb29-d091-4a74-b497-b88bb90d65ba